[Event "Titled Tuesday Blitz May 30 Late 2023"]
[White "Sieciechowicz, Marcin"]
[Black "Mortazavi, Ali"]
[WhiteFideId "1130170"]
[BlackFideId "401323"]
[WhiteElo "2302"]
[BlackElo "2339"]
[Result "1/2-1/2"]
[Round "07"]
[TimeControl "180+2"]
[Date "2023.05.31"]
[WhiteClock "0:01:14"]
[BlackClock "0:00:41"]

1. d4 {[%clk 0:03:00]}  Nf6 {[%clk 0:02:59]} 2. Bf4 {[%clk 0:03:01]}  g6 {[%clk 0:02:56]} 3. e3 {[%clk 0:03:01]}  Bg7 {[%clk 0:02:56]} 4. Nf3 {[%clk 0:03:02]}  O-O {[%clk 0:02:57]} 5. Be2 {[%clk 0:03:03]}  d6 {[%clk 0:02:58]} 6. O-O {[%clk 0:03:03]}  c5 {[%clk 0:02:59]} 7. c3 {[%clk 0:03:03]}  Be6 {[%clk 0:03:00]} 8. Nbd2 {[%clk 0:03:03]}  Qb6 {[%clk 0:03:00]} 9. Qc2 {[%clk 0:02:59]}  Nc6 {[%clk 0:03:00]} 10. Nc4 {[%clk 0:02:59]}  Bxc4 {[%clk 0:02:58]} 11. Bxc4 {[%clk 0:03:00]}  Rac8 {[%clk 0:02:54]} 12. Qb3 {[%clk 0:02:59]}  Nd7 {[%clk 0:02:33]} 13. Qxb6 {[%clk 0:02:54]}  Nxb6 {[%clk 0:02:33]} 14. Be2 {[%clk 0:02:55]}  cxd4 {[%clk 0:02:25]} 15. exd4 {[%clk 0:02:55]}  Nd5 {[%clk 0:02:23]} 16. Bg3 {[%clk 0:02:51]}  Bh6 {[%clk 0:02:22]} 17. Rfe1 {[%clk 0:02:48]}  Rfe8 {[%clk 0:02:15]} 18. h3 {[%clk 0:02:49]}  a6 {[%clk 0:02:05]} 19. Bc4 {[%clk 0:02:49]}  Nf4 {[%clk 0:02:03]} 20. Bf1 {[%clk 0:02:48]}  e5 {[%clk 0:01:51]} 21. dxe5 {[%clk 0:02:46]}  dxe5 {[%clk 0:01:51]} 22. Rad1 {[%clk 0:02:38]}  Rcd8 {[%clk 0:01:34]} 23. Rxd8 {[%clk 0:02:28]}  Rxd8 {[%clk 0:01:35]} 24. Nxe5 {[%clk 0:02:24]}  Nxe5 {[%clk 0:01:34]} 25. Rxe5 {[%clk 0:02:25]}  Rd1 {[%clk 0:01:34]} 26. Bxf4 {[%clk 0:02:12]}  Bxf4 {[%clk 0:01:34]} 27. Re7 {[%clk 0:02:04]}  b5 {[%clk 0:01:33]} 28. g3 {[%clk 0:02:04]}  Bc1 {[%clk 0:01:29]} 29. Re2 {[%clk 0:02:03]}  Rd2 {[%clk 0:01:24]} 30. Rxd2 {[%clk 0:02:03]}  Bxd2 {[%clk 0:01:24]} 31. c4 {[%clk 0:02:03]}  bxc4 {[%clk 0:01:22]} 32. Bxc4 {[%clk 0:02:04]}  a5 {[%clk 0:01:22]} 33. Kg2 {[%clk 0:02:04]}  Kf8 {[%clk 0:01:21]} 34. Kf3 {[%clk 0:02:04]}  Ke7 {[%clk 0:01:22]} 35. Ke4 {[%clk 0:02:04]}  f5+ {[%clk 0:01:15]} 36. Kd3 {[%clk 0:02:00]}  Bc1 {[%clk 0:01:13]} 37. b3 {[%clk 0:02:00]}  f4 {[%clk 0:01:12]} 38. g4 {[%clk 0:01:57]}  g5 {[%clk 0:01:11]} 39. Ke4 {[%clk 0:01:57]}  Kf6 {[%clk 0:01:07]} 40. Kd5 {[%clk 0:01:54]}  h6 {[%clk 0:00:58]} 41. f3 {[%clk 0:01:54]}  Bd2 {[%clk 0:00:56]} 42. Bd3 {[%clk 0:01:53]}  Bc1 {[%clk 0:00:52]} 43. Be4 {[%clk 0:01:53]}  Ba3 {[%clk 0:00:50]} 44. Kc4 {[%clk 0:01:48]}  Ke5 {[%clk 0:00:49]} 45. Kb5 {[%clk 0:01:49]}  Bb4 {[%clk 0:00:49]} 46. a3 {[%clk 0:01:45]}  Bxa3 {[%clk 0:00:46]} 47. Kxa5 {[%clk 0:01:46]}  Kd6 {[%clk 0:00:47]} 48. Kb5 {[%clk 0:01:39]}  Bc1 {[%clk 0:00:45]} 49. b4 {[%clk 0:01:31]}  Kc7 {[%clk 0:00:43]} 50. Kc5 {[%clk 0:01:30]}  Be3+ {[%clk 0:00:42]} 51. Kc4 {[%clk 0:01:28]}  Kb6 {[%clk 0:00:41]} 52. Bd3 {[%clk 0:01:28]}  Bf2 {[%clk 0:00:41]} 53. Kd5 {[%clk 0:01:28]}  Be1 {[%clk 0:00:41]} 54. b5 {[%clk 0:01:26]}  Bf2 {[%clk 0:00:41]} 55. Ke6 {[%clk 0:01:27]}  Be1 {[%clk 0:00:41]} 56. Kf6 {[%clk 0:01:27]}  Bf2 {[%clk 0:00:40]} 57. Kg6 {[%clk 0:01:27]}  Bh4 {[%clk 0:00:40]} 58. Kxh6 {[%clk 0:01:26]}  Kc5 {[%clk 0:00:40]} 59. Be2 {[%clk 0:01:25]}  Kb6 {[%clk 0:00:41]} 60. Kg6 {[%clk 0:01:14]} 1/2-1/2


[Site "https://www.chess.com"]

[Event "Titled Tuesday Blitz May 30 Late 2023"]
[White "Moral Garcia, Serafin"]
[Black "Danielyan, Vahe"]
[WhiteFideId "2201925"]
[BlackFideId "13304828"]
[WhiteElo "2274"]
[BlackElo "2423"]
[Result "1-0"]
[Round "07"]
[TimeControl "180+2"]
[Date "2023.05.31"]
[WhiteClock "0:00:15"]
[BlackClock "0:00:09"]

1. e4 {[%clk 0:03:00]}  c5 {[%clk 0:03:00]} 2. Nf3 {[%clk 0:03:00]}  e6 {[%clk 0:03:00]} 3. c3 {[%clk 0:03:00]}  d5 {[%clk 0:03:00]} 4. exd5 {[%clk 0:03:00]}  exd5 {[%clk 0:03:00]} 5. d4 {[%clk 0:03:00]}  Nf6 {[%clk 0:03:01]} 6. Bb5+ {[%clk 0:03:00]}  Bd7 {[%clk 0:03:01]} 7. Qe2+ {[%clk 0:02:55]}  Be7 {[%clk 0:03:01]} 8. dxc5 {[%clk 0:02:53]}  O-O {[%clk 0:03:01]} 9. Be3 {[%clk 0:02:51]}  Re8 {[%clk 0:03:01]} 10. b4 {[%clk 0:02:36]}  Ng4 {[%clk 0:02:50]} 11. O-O {[%clk 0:02:31]}  Bf6 {[%clk 0:02:48]} 12. Bxd7 {[%clk 0:02:16]}  Nxd7 {[%clk 0:02:49]} 13. Nd4 {[%clk 0:02:03]}  a5 {[%clk 0:02:46]} 14. Qxg4 {[%clk 0:02:00]}  axb4 {[%clk 0:02:43]} 15. cxb4 {[%clk 0:01:55]}  Ne5 {[%clk 0:02:33]} 16. Qe2 {[%clk 0:01:51]}  Nc4 {[%clk 0:02:33]} 17. Qd3 {[%clk 0:01:47]}  Qe7 {[%clk 0:02:27]} 18. Re1 {[%clk 0:01:42]}  Qe4 {[%clk 0:02:20]} 19. Qxe4 {[%clk 0:01:38]}  Rxe4 {[%clk 0:02:20]} 20. Rd1 {[%clk 0:01:13]}  Nb2 {[%clk 0:02:21]} 21. Nc3 {[%clk 0:01:05]}  Rg4 {[%clk 0:02:01]} 22. Nxd5 {[%clk 0:01:00]}  Nxd1 {[%clk 0:01:58]} 23. Nxf6+ {[%clk 0:00:59]}  gxf6 {[%clk 0:01:59]} 24. Rxd1 {[%clk 0:00:59]}  Rxa2 {[%clk 0:01:59]} 25. Nf5 {[%clk 0:00:58]}  Kh8 {[%clk 0:01:52]} 26. Bd4 {[%clk 0:00:48]}  h5 {[%clk 0:01:47]} 27. Bxf6+ {[%clk 0:00:48]}  Kh7 {[%clk 0:01:47]} 28. Bc3 {[%clk 0:00:43]}  Rc4 {[%clk 0:01:46]} 29. Be1 {[%clk 0:00:41]}  Rf4 {[%clk 0:01:13]} 30. Nd6 {[%clk 0:00:36]}  Ra7 {[%clk 0:01:13]} 31. g3 {[%clk 0:00:35]}  Rf6 {[%clk 0:01:12]} 32. Bc3 {[%clk 0:00:33]}  Rf3 {[%clk 0:01:13]} 33. Bd2 {[%clk 0:00:28]}  Rd3 {[%clk 0:01:12]} 34. Kf1 {[%clk 0:00:27]}  Rd5 {[%clk 0:01:10]} 35. Ke2 {[%clk 0:00:25]}  b6 {[%clk 0:01:11]} 36. Be3 {[%clk 0:00:22]}  Ra2+ {[%clk 0:00:58]} 37. Ke1 {[%clk 0:00:22]}  Rxd1+ {[%clk 0:00:59]} 38. Kxd1 {[%clk 0:00:22]}  bxc5 {[%clk 0:01:00]} 39. bxc5 {[%clk 0:00:22]}  Kg6 {[%clk 0:01:01]} 40. c6 {[%clk 0:00:20]}  Ra6 {[%clk 0:01:01]} 41. Ne4 {[%clk 0:00:19]}  Rxc6 {[%clk 0:01:01]} 42. Ke2 {[%clk 0:00:20]}  Re6 {[%clk 0:01:01]} 43. Nd2 {[%clk 0:00:19]}  Rc6 {[%clk 0:01:01]} 44. Kf3 {[%clk 0:00:20]}  Rc2 {[%clk 0:01:01]} 45. Ne4 {[%clk 0:00:20]}  Ra2 {[%clk 0:01:01]} 46. Nc3 {[%clk 0:00:20]}  Ra3 {[%clk 0:01:01]} 47. Ne2 {[%clk 0:00:21]}  Ra6 {[%clk 0:01:01]} 48. Nf4+ {[%clk 0:00:21]}  Kg5 {[%clk 0:01:00]} 49. h4+ {[%clk 0:00:21]}  Kh6 {[%clk 0:00:59]} 50. Nd5+ {[%clk 0:00:20]}  Kg6 {[%clk 0:00:59]} 51. Ke4 {[%clk 0:00:21]}  Ra4+ {[%clk 0:00:58]} 52. Bd4 {[%clk 0:00:20]}  Ra3 {[%clk 0:00:53]} 53. Nf4+ {[%clk 0:00:19]}  Kh6 {[%clk 0:00:54]} 54. Ke5 {[%clk 0:00:19]}  Ra6 {[%clk 0:00:51]} 55. Nd5 {[%clk 0:00:18]}  Re6+ {[%clk 0:00:50]} 56. Kf5 {[%clk 0:00:18]}  Rd6 {[%clk 0:00:37]} 57. Be3+ {[%clk 0:00:17]}  Kg7 {[%clk 0:00:38]} 58. Nf4 {[%clk 0:00:17]}  Rf6+ {[%clk 0:00:38]} 59. Kg5 {[%clk 0:00:17]}  Ra6 {[%clk 0:00:38]} 60. Nxh5+ {[%clk 0:00:17]}  Kh7 {[%clk 0:00:39]} 61. Nf4 {[%clk 0:00:17]}  Kg7 {[%clk 0:00:40]} 62. h5 {[%clk 0:00:18]}  Ra5+ {[%clk 0:00:40]} 63. Kg4 {[%clk 0:00:18]}  Kh6 {[%clk 0:00:40]} 64. Nh3+ {[%clk 0:00:18]}  Kg7 {[%clk 0:00:40]} 65. Kh4 {[%clk 0:00:18]}  Ra4+ {[%clk 0:00:40]} 66. g4 {[%clk 0:00:19]}  f6 {[%clk 0:00:40]} 67. Nf4 {[%clk 0:00:19]}  Re4 {[%clk 0:00:40]} 68. Kg3 {[%clk 0:00:18]}  Ra4 {[%clk 0:00:40]} 69. Kf3 {[%clk 0:00:19]}  Rb4 {[%clk 0:00:39]} 70. Ne6+ {[%clk 0:00:19]}  Kf7 {[%clk 0:00:40]} 71. Nd4 {[%clk 0:00:18]}  Ra4 {[%clk 0:00:38]} 72. Ke4 {[%clk 0:00:18]}  Ra5 {[%clk 0:00:38]} 73. f4 {[%clk 0:00:18]}  Kg7 {[%clk 0:00:35]} 74. Nf5+ {[%clk 0:00:19]}  Kh7 {[%clk 0:00:36]} 75. g5 {[%clk 0:00:19]}  Ra4+ {[%clk 0:00:37]} 76. Kf3 {[%clk 0:00:19]}  fxg5 {[%clk 0:00:33]} 77. fxg5 {[%clk 0:00:19]}  Ra5 {[%clk 0:00:34]} 78. Kg4 {[%clk 0:00:19]}  Kg8 {[%clk 0:00:34]} 79. Bf4 {[%clk 0:00:20]}  Ra4 {[%clk 0:00:34]} 80. g6 {[%clk 0:00:19]}  Kh8 {[%clk 0:00:34]} 81. h6 {[%clk 0:00:20]}  Kg8 {[%clk 0:00:34]} 82. Kg5 {[%clk 0:00:20]}  Ra5 {[%clk 0:00:33]} 83. h7+ {[%clk 0:00:20]}  Kh8 {[%clk 0:00:33]} 84. Be3 {[%clk 0:00:17]}  Re5 {[%clk 0:00:21]} 85. Kg4 {[%clk 0:00:17]}  Re4+ {[%clk 0:00:14]} 86. Kf3 {[%clk 0:00:17]}  Re5 {[%clk 0:00:15]} 87. Kf4 {[%clk 0:00:15]}  Re4+ {[%clk 0:00:15]} 88. Kf3 {[%clk 0:00:16]}  Re5 {[%clk 0:00:15]} 89. Ng3 {[%clk 0:00:16]}  Kg7 {[%clk 0:00:09]} 90. Bd4 {[%clk 0:00:16]}  Kxg6 {[%clk 0:00:10]} 91. h8=Q {[%clk 0:00:16]}  Re3+ {[%clk 0:00:09]} 92. Kxe3 {[%clk 0:00:15]} 1-0


[Site "https://www.chess.com"]

[Event "Titled Tuesday Blitz May 30 Late 2023"]
[White "Omariev, Maksim"]
[Black "Goryachkina, Aleksandra"]
[WhiteFideId "4193423"]
[BlackFideId "4147103"]
[WhiteElo "2492"]
[BlackElo "2471"]
[Result "0-1"]
[Round "07"]
[TimeControl "180+2"]
[Date "2023.05.31"]
[WhiteClock "0:00:07"]
[BlackClock "0:00:06"]

1. g4 {[%clk 0:02:57]}  d5 {[%clk 0:02:56]} 2. Bg2 {[%clk 0:02:57]}  c6 {[%clk 0:02:55]} 3. h3 {[%clk 0:02:56]}  e5 {[%clk 0:02:54]} 4. d4 {[%clk 0:02:57]}  e4 {[%clk 0:02:50]} 5. c4 {[%clk 0:02:57]}  Bb4+ {[%clk 0:02:47]} 6. Nc3 {[%clk 0:02:54]}  Ne7 {[%clk 0:02:47]} 7. Qb3 {[%clk 0:02:52]}  a5 {[%clk 0:02:43]} 8. a3 {[%clk 0:02:40]}  dxc4 {[%clk 0:02:42]} 9. Qc2 {[%clk 0:02:41]}  Bxc3+ {[%clk 0:02:29]} 10. bxc3 {[%clk 0:02:37]}  O-O {[%clk 0:02:28]} 11. Bxe4 {[%clk 0:02:37]}  f5 {[%clk 0:02:23]} 12. Bg2 {[%clk 0:02:33]}  Be6 {[%clk 0:02:17]} 13. Nf3 {[%clk 0:02:32]}  Nd7 {[%clk 0:02:09]} 14. Rb1 {[%clk 0:02:23]}  b5 {[%clk 0:01:45]} 15. Ng5 {[%clk 0:02:19]}  Bd5 {[%clk 0:01:24]} 16. Bxd5+ {[%clk 0:02:19]}  cxd5 {[%clk 0:01:04]} 17. Ne6 {[%clk 0:02:20]}  Qb6 {[%clk 0:01:04]} 18. Nxf8 {[%clk 0:02:17]}  Rxf8 {[%clk 0:01:04]} 19. Bg5 {[%clk 0:02:13]}  Nc6 {[%clk 0:00:58]} 20. gxf5 {[%clk 0:02:11]}  b4 {[%clk 0:00:58]} 21. axb4 {[%clk 0:02:09]}  axb4 {[%clk 0:00:58]} 22. e4 {[%clk 0:01:44]}  b3 {[%clk 0:00:42]} 23. Qe2 {[%clk 0:01:41]}  Nxd4 {[%clk 0:00:30]} 24. cxd4 {[%clk 0:01:36]}  Qb4+ {[%clk 0:00:30]} 25. Kf1 {[%clk 0:01:24]}  c3 {[%clk 0:00:30]} 26. Kg2 {[%clk 0:01:14]}  Nb6 {[%clk 0:00:23]} 27. f3 {[%clk 0:01:07]}  Nc4 {[%clk 0:00:17]} 28. Rhc1 {[%clk 0:00:59]}  Na3 {[%clk 0:00:13]} 29. Be7 {[%clk 0:00:47]}  Qxe7 {[%clk 0:00:09]} 30. Rxc3 {[%clk 0:00:34]}  Nxb1 {[%clk 0:00:08]} 31. Rxb3 {[%clk 0:00:35]}  Qg5+ {[%clk 0:00:08]} 32. Kh2 {[%clk 0:00:35]}  Nd2 {[%clk 0:00:08]} 33. Rd3 {[%clk 0:00:26]}  Qf4+ {[%clk 0:00:06]} 34. Kg2 {[%clk 0:00:25]}  dxe4 {[%clk 0:00:06]} 35. fxe4 {[%clk 0:00:17]}  Nxe4 {[%clk 0:00:06]} 36. Rf3 {[%clk 0:00:17]}  Qg5+ {[%clk 0:00:06]} 37. Kh2 {[%clk 0:00:18]}  Nf6 {[%clk 0:00:06]} 38. Qe6+ {[%clk 0:00:12]}  Kh8 {[%clk 0:00:07]} 39. Rf2 {[%clk 0:00:11]}  Qh4 {[%clk 0:00:06]} 40. Qe3 {[%clk 0:00:07]}  Ng4+ {[%clk 0:00:06]} 0-1


[Site "https://www.chess.com"]

[Event "Titled Tuesday Blitz May 30 Late 2023"]
[White "Timmermans, Mark"]
[Black "Jimenez Almeida, Luis David"]
[WhiteFideId "1026399"]
[BlackFideId "22242244"]
[WhiteElo "2460"]
[BlackElo "2245"]
[Result "0-1"]
[Round "07"]
[TimeControl "180+2"]
[Date "2023.05.31"]
[WhiteClock "0:00:21"]
[BlackClock "0:00:22"]

1. b4 {[%clk 0:03:00]}  e5 {[%clk 0:02:58]} 2. Bb2 {[%clk 0:02:58]}  Bxb4 {[%clk 0:02:58]} 3. Bxe5 {[%clk 0:02:58]}  Nf6 {[%clk 0:02:59]} 4. Nc3 {[%clk 0:02:58]}  Nc6 {[%clk 0:02:59]} 5. Bxf6 {[%clk 0:02:58]}  Qxf6 {[%clk 0:02:57]} 6. Nd5 {[%clk 0:02:59]}  Qd6 {[%clk 0:02:56]} 7. c4 {[%clk 0:02:58]}  O-O {[%clk 0:02:49]} 8. Nf3 {[%clk 0:02:57]}  Re8 {[%clk 0:02:46]} 9. e3 {[%clk 0:02:56]}  Ne7 {[%clk 0:02:41]} 10. Nxe7+ {[%clk 0:02:54]}  Qxe7 {[%clk 0:02:40]} 11. Be2 {[%clk 0:02:55]}  a5 {[%clk 0:02:34]} 12. O-O {[%clk 0:02:53]}  Qf6 {[%clk 0:02:32]} 13. d4 {[%clk 0:02:53]}  Bf8 {[%clk 0:02:23]} 14. Rb1 {[%clk 0:02:47]}  d6 {[%clk 0:02:22]} 15. Nd2 {[%clk 0:02:44]}  g6 {[%clk 0:02:14]} 16. Bf3 {[%clk 0:02:42]}  c6 {[%clk 0:02:15]} 17. Qa4 {[%clk 0:02:36]}  Bg7 {[%clk 0:02:09]} 18. d5 {[%clk 0:02:34]}  b5 {[%clk 0:01:46]} 19. cxb5 {[%clk 0:02:31]}  cxb5 {[%clk 0:01:46]} 20. Qc2 {[%clk 0:01:55]}  Ba6 {[%clk 0:01:44]} 21. Ne4 {[%clk 0:01:52]}  Qe5 {[%clk 0:01:44]} 22. Qc6 {[%clk 0:01:52]}  b4 {[%clk 0:01:39]} 23. Rfd1 {[%clk 0:01:49]}  Red8 {[%clk 0:01:38]} 24. Rbc1 {[%clk 0:01:28]}  h6 {[%clk 0:01:36]} 25. Qb6 {[%clk 0:01:25]}  f5 {[%clk 0:01:05]} 26. Nd2 {[%clk 0:01:14]}  Qb2 {[%clk 0:01:03]} 27. h4 {[%clk 0:00:49]}  Qxa2 {[%clk 0:00:57]} 28. Rc7 {[%clk 0:00:43]}  Qb2 {[%clk 0:00:50]} 29. Qxa5 {[%clk 0:00:37]}  Kh7 {[%clk 0:00:31]} 30. Re7 {[%clk 0:00:32]}  Be2 {[%clk 0:00:28]} 31. Rxg7+ {[%clk 0:00:30]}  Qxg7 {[%clk 0:00:27]} 32. Qxd8 {[%clk 0:00:28]}  Rxd8 {[%clk 0:00:25]} 33. Bxe2 {[%clk 0:00:29]}  Rc8 {[%clk 0:00:23]} 34. Nf3 {[%clk 0:00:22]}  b3 {[%clk 0:00:21]} 35. Nd4 {[%clk 0:00:20]}  b2 {[%clk 0:00:22]} 36. Rb1 {[%clk 0:00:21]}  Rc1+ {[%clk 0:00:22]} 0-1


[Site "https://www.chess.com"]

[Event "Titled Tuesday Blitz May 30 Late 2023"]
[White "Arnold, Ken"]
[Black "Domingo Nunez, Ruben"]
[WhiteFideId "2056836"]
[BlackFideId "22245570"]
[WhiteElo "2415"]
[BlackElo "2404"]
[Result "0-1"]
[Round "07"]
[TimeControl "180+2"]
[Date "2023.05.31"]
[WhiteClock "0:00:02"]
[BlackClock "0:00:21"]

1. d4 {[%clk 0:03:00]}  g6 {[%clk 0:02:58]} 2. Nf3 {[%clk 0:03:01]}  Bg7 {[%clk 0:02:58]} 3. g3 {[%clk 0:03:01]}  Nf6 {[%clk 0:02:58]} 4. Bg2 {[%clk 0:03:01]}  O-O {[%clk 0:02:59]} 5. O-O {[%clk 0:03:01]}  d6 {[%clk 0:03:00]} 6. c4 {[%clk 0:03:02]}  Nbd7 {[%clk 0:03:01]} 7. Nc3 {[%clk 0:03:02]}  c5 {[%clk 0:03:02]} 8. Bg5 {[%clk 0:02:56]}  Rb8 {[%clk 0:03:02]} 9. Rc1 {[%clk 0:02:55]}  a6 {[%clk 0:03:02]} 10. e4 {[%clk 0:02:52]}  Ne8 {[%clk 0:03:01]} 11. e5 {[%clk 0:02:46]}  cxd4 {[%clk 0:03:01]} 12. exd6 {[%clk 0:02:43]}  Nxd6 {[%clk 0:03:02]} 13. Nxd4 {[%clk 0:02:40]}  h6 {[%clk 0:02:51]} 14. Bf4 {[%clk 0:01:53]}  e5 {[%clk 0:02:45]} 15. Nf3 {[%clk 0:01:33]}  Nxc4 {[%clk 0:02:42]} 16. Qe2 {[%clk 0:01:21]}  b5 {[%clk 0:02:25]} 17. Be3 {[%clk 0:01:13]}  Bb7 {[%clk 0:02:17]} 18. Rfd1 {[%clk 0:01:10]}  Qe8 {[%clk 0:01:24]} 19. b3 {[%clk 0:01:06]}  Nxe3 {[%clk 0:01:24]} 20. Qxe3 {[%clk 0:01:06]}  e4 {[%clk 0:01:22]} 21. Nd4 {[%clk 0:00:59]}  Nf6 {[%clk 0:01:21]} 22. h3 {[%clk 0:00:46]}  Qe5 {[%clk 0:01:12]} 23. a3 {[%clk 0:00:38]}  Rfe8 {[%clk 0:01:12]} 24. b4 {[%clk 0:00:36]}  h5 {[%clk 0:00:55]} 25. Nb3 {[%clk 0:00:34]}  h4 {[%clk 0:00:54]} 26. g4 {[%clk 0:00:27]}  Kh7 {[%clk 0:00:54]} 27. Qc5 {[%clk 0:00:21]}  e3 {[%clk 0:00:39]} 28. Qxe5 {[%clk 0:00:20]}  Rxe5 {[%clk 0:00:40]} 29. Nc5 {[%clk 0:00:18]}  Bxg2 {[%clk 0:00:28]} 30. Kxg2 {[%clk 0:00:18]}  exf2 {[%clk 0:00:28]} 31. Kxf2 {[%clk 0:00:18]}  a5 {[%clk 0:00:25]} 32. Rc2 {[%clk 0:00:17]}  Bh6 {[%clk 0:00:20]} 33. Re2 {[%clk 0:00:16]}  Rxe2+ {[%clk 0:00:17]} 34. Nxe2 {[%clk 0:00:16]}  axb4 {[%clk 0:00:16]} 35. axb4 {[%clk 0:00:16]}  Re8 {[%clk 0:00:16]} 36. Rd3 {[%clk 0:00:12]}  Ne4+ {[%clk 0:00:15]} 37. Nxe4 {[%clk 0:00:12]}  Rxe4 {[%clk 0:00:15]} 38. Nd4 {[%clk 0:00:09]}  Be3+ {[%clk 0:00:14]} 39. Rxe3 {[%clk 0:00:06]}  Rxd4 {[%clk 0:00:15]} 40. Rb3 {[%clk 0:00:05]}  Kh6 {[%clk 0:00:15]} 41. Kf3 {[%clk 0:00:05]}  g5 {[%clk 0:00:15]} 42. Ke3 {[%clk 0:00:04]}  Rf4 {[%clk 0:00:16]} 43. Rb1 {[%clk 0:00:04]}  Kg6 {[%clk 0:00:16]} 44. Rb2 {[%clk 0:00:04]}  f5 {[%clk 0:00:16]} 45. gxf5+ {[%clk 0:00:04]}  Kxf5 {[%clk 0:00:17]} 46. Rb1 {[%clk 0:00:04]}  Re4+ {[%clk 0:00:17]} 47. Kf3 {[%clk 0:00:04]}  Rc4 {[%clk 0:00:18]} 48. Ke3 {[%clk 0:00:02]}  Rc3+ {[%clk 0:00:18]} 49. Kd4 {[%clk 0:00:03]}  Rxh3 {[%clk 0:00:18]} 50. Kc5 {[%clk 0:00:03]}  g4 {[%clk 0:00:18]} 51. Kxb5 {[%clk 0:00:03]}  g3 {[%clk 0:00:19]} 52. Kc4 {[%clk 0:00:03]}  g2 {[%clk 0:00:20]} 53. Rg1 {[%clk 0:00:03]}  Rg3 {[%clk 0:00:20]} 54. b5 {[%clk 0:00:03]}  h3 {[%clk 0:00:21]} 55. b6 {[%clk 0:00:04]}  h2 {[%clk 0:00:21]} 56. Rxg2 {[%clk 0:00:02]}  Rxg2 {[%clk 0:00:21]} 57. b7 {[%clk 0:00:02]}  Rg8 {[%clk 0:00:21]} 0-1


[Site "https://www.chess.com"]

[Event "Titled Tuesday Blitz May 30 Late 2023"]
[White "Becerra, Juan David"]
[Black "Tanenbaum, Zachary"]
[WhiteFideId "4404998"]
[BlackFideId "2060850"]
[WhiteElo "2304"]
[BlackElo "2175"]
[Result "1/2-1/2"]
[Round "07"]
[TimeControl "180+2"]
[Date "2023.05.31"]
[WhiteClock "0:00:13"]
[BlackClock "0:00:13"]

1. e4 {[%clk 0:02:58]}  e5 {[%clk 0:02:59]} 2. Nf3 {[%clk 0:02:57]}  Nc6 {[%clk 0:02:59]} 3. Bc4 {[%clk 0:02:39]}  Nf6 {[%clk 0:02:59]} 4. d3 {[%clk 0:02:34]}  Be7 {[%clk 0:02:58]} 5. c3 {[%clk 0:02:32]}  O-O {[%clk 0:02:58]} 6. O-O {[%clk 0:02:30]}  d5 {[%clk 0:02:58]} 7. exd5 {[%clk 0:02:22]}  Nxd5 {[%clk 0:02:59]} 8. h3 {[%clk 0:02:17]}  a6 {[%clk 0:02:57]} 9. Nbd2 {[%clk 0:02:05]}  Nb6 {[%clk 0:02:50]} 10. Bb3 {[%clk 0:02:05]}  Kh8 {[%clk 0:02:47]} 11. Re1 {[%clk 0:02:02]}  Bd6 {[%clk 0:02:45]} 12. Ne4 {[%clk 0:01:55]}  h6 {[%clk 0:02:45]} 13. d4 {[%clk 0:01:54]}  exd4 {[%clk 0:01:53]} 14. Nxd6 {[%clk 0:01:52]}  Qxd6 {[%clk 0:01:52]} 15. Nxd4 {[%clk 0:01:44]}  Nxd4 {[%clk 0:01:52]} 16. cxd4 {[%clk 0:01:38]}  Bd7 {[%clk 0:01:12]} 17. Qh5 {[%clk 0:01:29]}  Rae8 {[%clk 0:01:01]} 18. Rxe8 {[%clk 0:01:20]}  Rxe8 {[%clk 0:01:02]} 19. Be3 {[%clk 0:01:17]}  Be6 {[%clk 0:01:01]} 20. Bc2 {[%clk 0:00:36]}  Qf8 {[%clk 0:00:25]} 21. b3 {[%clk 0:00:25]}  Kg8 {[%clk 0:00:23]} 22. Rc1 {[%clk 0:00:25]}  Nd5 {[%clk 0:00:23]} 23. Be4 {[%clk 0:00:23]}  Nxe3 {[%clk 0:00:20]} 24. fxe3 {[%clk 0:00:24]}  c6 {[%clk 0:00:19]} 25. d5 {[%clk 0:00:19]}  cxd5 {[%clk 0:00:17]} 26. Bxd5 {[%clk 0:00:20]}  Bxd5 {[%clk 0:00:14]} 27. Qxd5 {[%clk 0:00:20]}  Qe7 {[%clk 0:00:14]} 28. Rc3 {[%clk 0:00:18]}  Qf6 {[%clk 0:00:13]} 29. Qd4 {[%clk 0:00:17]}  Qe7 {[%clk 0:00:12]} 30. Qd5 {[%clk 0:00:12]}  Rd8 {[%clk 0:00:12]} 31. Qf3 {[%clk 0:00:11]}  g6 {[%clk 0:00:10]} 32. e4 {[%clk 0:00:11]}  Rd2 {[%clk 0:00:09]} 33. Qe3 {[%clk 0:00:09]}  Qd7 {[%clk 0:00:08]} 34. Rc8+ {[%clk 0:00:08]}  Kh7 {[%clk 0:00:08]} 35. Qc3 {[%clk 0:00:07]}  Rd1+ {[%clk 0:00:08]} 36. Kh2 {[%clk 0:00:07]}  Qd6+ {[%clk 0:00:07]} 37. e5 {[%clk 0:00:08]}  Qb6 {[%clk 0:00:05]} 38. Qc5 {[%clk 0:00:05]}  Qxc5 {[%clk 0:00:04]} 39. Rxc5 {[%clk 0:00:06]}  Rd2 {[%clk 0:00:04]} 40. Rc7 {[%clk 0:00:06]}  Kg8 {[%clk 0:00:03]} 41. Rxb7 {[%clk 0:00:06]}  Rxa2 {[%clk 0:00:03]} 42. Rb8+ {[%clk 0:00:06]}  Kg7 {[%clk 0:00:03]} 43. Rb7 {[%clk 0:00:07]}  Re2 {[%clk 0:00:03]} 44. Rb6 {[%clk 0:00:07]}  Re3 {[%clk 0:00:01]} 45. Rxa6 {[%clk 0:00:06]}  Rxb3 {[%clk 0:00:01]} 46. Ra5 {[%clk 0:00:06]}  Re3 {[%clk 0:00:02]} 47. Kg1 {[%clk 0:00:06]}  Kf8 {[%clk 0:00:02]} 48. Kf2 {[%clk 0:00:07]}  Re4 {[%clk 0:00:02]} 49. Kf3 {[%clk 0:00:08]}  Rb4 {[%clk 0:00:03]} 50. Ra7 {[%clk 0:00:07]}  Kg7 {[%clk 0:00:03]} 51. e6 {[%clk 0:00:07]}  Kf6 {[%clk 0:00:03]} 52. exf7 {[%clk 0:00:07]}  Kg7 {[%clk 0:00:03]} 53. g4 {[%clk 0:00:07]}  Rb6 {[%clk 0:00:03]} 54. Ke4 {[%clk 0:00:06]}  Rf6 {[%clk 0:00:03]} 55. h4 {[%clk 0:00:05]}  Rf1 {[%clk 0:00:03]} 56. g5 {[%clk 0:00:04]}  hxg5 {[%clk 0:00:04]} 57. hxg5 {[%clk 0:00:05]}  Rf5 {[%clk 0:00:04]} 58. Rb7 {[%clk 0:00:03]}  Rxg5 {[%clk 0:00:04]} 59. Kf4 {[%clk 0:00:03]}  Rf5+ {[%clk 0:00:04]} 60. Kg4 {[%clk 0:00:04]}  Kf8 {[%clk 0:00:04]} 61. Rc7 {[%clk 0:00:03]}  Kg7 {[%clk 0:00:03]} 62. Ra7 {[%clk 0:00:04]}  Rf6 {[%clk 0:00:04]} 63. Rb7 {[%clk 0:00:04]}  Re6 {[%clk 0:00:04]} 64. Ra7 {[%clk 0:00:03]}  Rd6 {[%clk 0:00:04]} 65. Rb7 {[%clk 0:00:03]}  Ra6 {[%clk 0:00:05]} 66. Rc7 {[%clk 0:00:03]}  Ra4+ {[%clk 0:00:05]} 67. Kg5 {[%clk 0:00:03]}  Ra5+ {[%clk 0:00:06]} 68. Kg4 {[%clk 0:00:03]}  Rf5 {[%clk 0:00:07]} 69. Rb7 {[%clk 0:00:03]}  Rxf7 {[%clk 0:00:07]} 70. Rxf7+ {[%clk 0:00:04]}  Kxf7 {[%clk 0:00:08]} 71. Kg5 {[%clk 0:00:04]}  Kg7 {[%clk 0:00:08]} 72. Kg4 {[%clk 0:00:05]}  Kf6 {[%clk 0:00:09]} 73. Kf4 {[%clk 0:00:05]}  g5+ {[%clk 0:00:09]} 74. Kg4 {[%clk 0:00:06]}  Kg6 {[%clk 0:00:10]} 75. Kg3 {[%clk 0:00:06]}  Kf5 {[%clk 0:00:11]} 76. Kf3 {[%clk 0:00:06]}  g4+ {[%clk 0:00:11]} 77. Kg3 {[%clk 0:00:07]}  Kg5 {[%clk 0:00:12]} 78. Kg2 {[%clk 0:00:07]}  Kh4 {[%clk 0:00:13]} 79. Kh2 {[%clk 0:00:08]}  Kh5 {[%clk 0:00:11]} 80. Kg3 {[%clk 0:00:08]}  Kg5 {[%clk 0:00:12]} 81. Kg2 {[%clk 0:00:09]}  Kf4 {[%clk 0:00:13]} 82. Kf2 {[%clk 0:00:09]}  g3+ {[%clk 0:00:13]} 83. Kg2 {[%clk 0:00:10]}  Kg4 {[%clk 0:00:13]} 84. Kg1 {[%clk 0:00:10]}  Kf3 {[%clk 0:00:13]} 85. Kf1 {[%clk 0:00:10]}  Ke3 {[%clk 0:00:13]} 86. Kg2 {[%clk 0:00:11]}  Kf4 {[%clk 0:00:14]} 87. Kg1 {[%clk 0:00:11]}  Kg4 {[%clk 0:00:13]} 88. Kg2 {[%clk 0:00:12]}  Kh4 {[%clk 0:00:13]} 89. Kg1 {[%clk 0:00:12]}  Kh3 {[%clk 0:00:13]} 90. Kh1 {[%clk 0:00:13]}  g2+ {[%clk 0:00:13]} 91. Kg1 {[%clk 0:00:13]}  Kg3 {[%clk 0:00:13]} 1/2-1/2


[Site "https://www.chess.com"]